[Event "Titled Tuesday Blitz July 27 2021"]
[White "Oparin, Grigoriy"]
[Black "Priasmoro, Novendra"]
[WhiteFideId "24125890"]
[BlackFideId "7105029"]
[WhiteElo "2628"]
[BlackElo "2309"]
[Result "1-0"]
[Round "07"]
[TimeControl "180+1"]
[Date "2021.07.27"]
[WhiteClock "0:00:03"]
[BlackClock "0:00:01"]

1. g3 {[%clk 0:03:00]}  Nf6 {[%clk 0:02:59]} 2. Bg2 {[%clk 0:03:01]}  g6 {[%clk 0:03:00]} 3. c4 {[%clk 0:03:02]}  Bg7 {[%clk 0:03:01]} 4. Nc3 {[%clk 0:03:03]}  O-O {[%clk 0:03:01]} 5. e4 {[%clk 0:03:03]}  d6 {[%clk 0:03:02]} 6. Nge2 {[%clk 0:03:03]}  e5 {[%clk 0:02:58]} 7. O-O {[%clk 0:03:02]}  Nc6 {[%clk 0:02:57]} 8. d4 {[%clk 0:03:00]}  exd4 {[%clk 0:02:52]} 9. Nxd4 {[%clk 0:03:01]}  Bd7 {[%clk 0:02:50]} 10. Nxc6 {[%clk 0:02:58]}  Bxc6 {[%clk 0:02:51]} 11. Qc2 {[%clk 0:02:57]}  Re8 {[%clk 0:02:46]} 12. Nd5 {[%clk 0:02:54]}  h6 {[%clk 0:02:33]} 13. Bd2 {[%clk 0:02:48]}  Kh7 {[%clk 0:02:25]} 14. Rad1 {[%clk 0:02:37]}  Nd7 {[%clk 0:02:16]} 15. Rfe1 {[%clk 0:02:37]}  a5 {[%clk 0:02:13]} 16. h4 {[%clk 0:02:35]}  h5 {[%clk 0:02:10]} 17. Bg5 {[%clk 0:02:34]}  f6 {[%clk 0:02:07]} 18. Be3 {[%clk 0:02:29]}  Ne5 {[%clk 0:02:05]} 19. c5 {[%clk 0:02:29]}  Rc8 {[%clk 0:01:54]} 20. Bd2 {[%clk 0:02:23]}  Bxd5 {[%clk 0:01:51]} 21. exd5 {[%clk 0:02:22]}  dxc5 {[%clk 0:01:51]} 22. Qxc5 {[%clk 0:02:19]}  b6 {[%clk 0:01:52]} 23. Qc2 {[%clk 0:02:19]}  Qd6 {[%clk 0:01:51]} 24. Bc3 {[%clk 0:02:17]}  f5 {[%clk 0:01:49]} 25. Re2 {[%clk 0:02:07]}  Re7 {[%clk 0:01:40]} 26. Bd2 {[%clk 0:02:05]}  Bh6 {[%clk 0:01:28]} 27. Bxh6 {[%clk 0:02:03]}  Kxh6 {[%clk 0:01:29]} 28. Rde1 {[%clk 0:02:03]}  Rce8 {[%clk 0:01:29]} 29. Qc3 {[%clk 0:01:41]}  Kh7 {[%clk 0:01:27]} 30. Qe3 {[%clk 0:01:27]}  Nc6 {[%clk 0:01:21]} 31. Qd2 {[%clk 0:01:21]}  Rxe2 {[%clk 0:01:21]} 32. Rxe2 {[%clk 0:01:22]}  Rxe2 {[%clk 0:01:21]} 33. Qxe2 {[%clk 0:01:23]}  Ne5 {[%clk 0:01:14]} 34. Qe3 {[%clk 0:01:17]}  Kg7 {[%clk 0:01:14]} 35. a3 {[%clk 0:01:14]}  Nf7 {[%clk 0:00:57]} 36. Qd2 {[%clk 0:01:08]}  c5 {[%clk 0:00:51]} 37. Bf1 {[%clk 0:00:56]}  Qe5 {[%clk 0:00:48]} 38. b4 {[%clk 0:00:54]}  axb4 {[%clk 0:00:33]} 39. axb4 {[%clk 0:00:55]}  Qd4 {[%clk 0:00:33]} 40. Qxd4+ {[%clk 0:00:47]}  cxd4 {[%clk 0:00:34]} 41. f4 {[%clk 0:00:45]}  Nd6 {[%clk 0:00:32]} 42. Kf2 {[%clk 0:00:26]}  Kf6 {[%clk 0:00:28]} 43. Ke2 {[%clk 0:00:24]}  Ne4 {[%clk 0:00:28]} 44. Kd3 {[%clk 0:00:24]}  Nxg3 {[%clk 0:00:25]} 45. Bg2 {[%clk 0:00:24]}  Ke7 {[%clk 0:00:26]} 46. Bf3 {[%clk 0:00:22]}  Kd6 {[%clk 0:00:25]} 47. Kxd4 {[%clk 0:00:22]}  Nf1 {[%clk 0:00:15]} 48. Kd3 {[%clk 0:00:22]}  Nh2 {[%clk 0:00:14]} 49. Bg2 {[%clk 0:00:15]}  Ng4 {[%clk 0:00:14]} 50. Kd4 {[%clk 0:00:15]}  Nf6 {[%clk 0:00:14]} 51. Kc4 {[%clk 0:00:15]}  Ne4 {[%clk 0:00:14]} 52. Kb5 {[%clk 0:00:11]}  Nc3+ {[%clk 0:00:14]} 53. Kxb6 {[%clk 0:00:10]}  Ne2 {[%clk 0:00:14]} 54. Bf3 {[%clk 0:00:08]}  Nxf4 {[%clk 0:00:14]} 55. b5 {[%clk 0:00:09]}  Nxd5+ {[%clk 0:00:07]} 56. Ka7 {[%clk 0:00:04]}  Ne7 {[%clk 0:00:02]} 57. Kb7 {[%clk 0:00:03]}  f4 {[%clk 0:00:01]} 58. Be4 {[%clk 0:00:03]}  Kc5 {[%clk 0:00:01]} 59. b6 {[%clk 0:00:03]}  Kd4 {[%clk 0:00:01]} 60. Bh1 {[%clk 0:00:02]}  Ke3 {[%clk 0:00:02]} 61. Kc7 {[%clk 0:00:02]}  f3 {[%clk 0:00:02]} 62. Bxf3 {[%clk 0:00:03]}  Kxf3 {[%clk 0:00:02]} 63. b7 {[%clk 0:00:04]}  Nd5+ {[%clk 0:00:03]} 64. Kd6 {[%clk 0:00:04]}  Nf4 {[%clk 0:00:04]} 65. b8=Q {[%clk 0:00:04]}  Kg4 {[%clk 0:00:05]} 66. Qb4 {[%clk 0:00:05]}  Kg3 {[%clk 0:00:04]} 67. Qa3+ {[%clk 0:00:04]}  Kxh4 {[%clk 0:00:04]} 68. Ke7 {[%clk 0:00:05]}  g5 {[%clk 0:00:05]} 69. Kf6 {[%clk 0:00:06]}  Kg4 {[%clk 0:00:05]} 70. Ke5 {[%clk 0:00:06]}  h4 {[%clk 0:00:05]} 71. Qa1 {[%clk 0:00:06]}  h3 {[%clk 0:00:05]} 72. Qg1+ {[%clk 0:00:06]}  Kf3 {[%clk 0:00:03]} 73. Qh2 {[%clk 0:00:05]}  Kg4 {[%clk 0:00:01]} 74. Ke4 {[%clk 0:00:04]}  Ng2 {[%clk 0:00:01]} 75. Qb8 {[%clk 0:00:03]}  Nf4 {[%clk 0:00:01]} 76. Qh8 {[%clk 0:00:02]}  Kg3 {[%clk 0:00:02]} 77. Qh6 {[%clk 0:00:02]}  h2 {[%clk 0:00:01]} 78. Qxg5+ {[%clk 0:00:02]}  Kh3 {[%clk 0:00:01]} 79. Qh6+ {[%clk 0:00:02]}  Kg2 {[%clk 0:00:02]} 80. Qg5+ {[%clk 0:00:02]}  Kh3 {[%clk 0:00:02]} 81. Kxf4 {[%clk 0:00:02]}  h1=Q {[%clk 0:00:01]} 82. Qg3# {[%clk 0:00:03]} 1-0


[Site "https://www.chess.com"]

[Event "Titled Tuesday Blitz July 27 2021"]
[White "Pinheiro, Iung Alicio de O."]
[Black "Tanenbaum, Zachary"]
[WhiteFideId "2104350"]
[BlackFideId "2060850"]
[WhiteElo "2468"]
[BlackElo "2165"]
[Result "1-0"]
[Round "07"]
[TimeControl "180+1"]
[Date "2021.07.27"]
[WhiteClock "0:00:22"]
[BlackClock "0:00:03"]

1. e4 {[%clk 0:03:00]}  e5 {[%clk 0:02:59]} 2. Bc4 {[%clk 0:02:59]}  Nc6 {[%clk 0:03:00]} 3. d3 {[%clk 0:02:59]}  Nf6 {[%clk 0:02:59]} 4. Nc3 {[%clk 0:02:59]}  Na5 {[%clk 0:02:59]} 5. Qf3 {[%clk 0:02:58]}  Bc5 {[%clk 0:02:58]} 6. Nge2 {[%clk 0:02:56]}  d6 {[%clk 0:02:58]} 7. h3 {[%clk 0:02:57]}  O-O {[%clk 0:02:56]} 8. a4 {[%clk 0:02:56]}  Nxc4 {[%clk 0:02:55]} 9. dxc4 {[%clk 0:02:57]}  h6 {[%clk 0:02:55]} 10. Ng3 {[%clk 0:02:57]}  Be6 {[%clk 0:02:54]} 11. b3 {[%clk 0:02:56]}  a5 {[%clk 0:02:53]} 12. O-O {[%clk 0:02:56]}  Nd7 {[%clk 0:02:44]} 13. Bd2 {[%clk 0:02:33]}  c6 {[%clk 0:02:36]} 14. Rad1 {[%clk 0:02:33]}  Qh4 {[%clk 0:02:15]} 15. Rfe1 {[%clk 0:02:16]}  g6 {[%clk 0:02:12]} 16. Be3 {[%clk 0:02:08]}  Bb4 {[%clk 0:01:42]} 17. Bd2 {[%clk 0:02:07]}  f5 {[%clk 0:01:41]} 18. exf5 {[%clk 0:01:50]}  gxf5 {[%clk 0:01:39]} 19. Qh5 {[%clk 0:01:50]}  Qf6 {[%clk 0:01:23]} 20. Nb1 {[%clk 0:01:38]}  Bxd2 {[%clk 0:01:12]} 21. Rxd2 {[%clk 0:01:38]}  d5 {[%clk 0:01:08]} 22. cxd5 {[%clk 0:01:31]}  cxd5 {[%clk 0:01:09]} 23. Nc3 {[%clk 0:01:31]}  d4 {[%clk 0:01:07]} 24. Nb5 {[%clk 0:01:31]}  Rac8 {[%clk 0:00:56]} 25. Qe2 {[%clk 0:01:21]}  Kh7 {[%clk 0:00:50]} 26. Nxd4 {[%clk 0:01:18]}  Rg8 {[%clk 0:00:20]} 27. Nxe6 {[%clk 0:01:15]}  Qxe6 {[%clk 0:00:20]} 28. Qd3 {[%clk 0:01:14]}  Nc5 {[%clk 0:00:10]} 29. Qxf5+ {[%clk 0:01:13]}  Qxf5 {[%clk 0:00:11]} 30. Nxf5 {[%clk 0:01:14]}  Rgd8 {[%clk 0:00:11]} 31. Rxd8 {[%clk 0:01:13]}  Rxd8 {[%clk 0:00:12]} 32. Rxe5 {[%clk 0:01:14]}  b6 {[%clk 0:00:10]} 33. Ne3 {[%clk 0:01:07]}  Rd2 {[%clk 0:00:10]} 34. Re7+ {[%clk 0:01:07]}  Kg6 {[%clk 0:00:10]} 35. Re8 {[%clk 0:01:02]}  Kf7 {[%clk 0:00:09]} 36. Rb8 {[%clk 0:01:02]}  Ne4 {[%clk 0:00:09]} 37. f3 {[%clk 0:00:51]}  Ng3 {[%clk 0:00:08]} 38. Rxb6 {[%clk 0:00:50]}  h5 {[%clk 0:00:08]} 39. h4 {[%clk 0:00:50]}  Re2 {[%clk 0:00:07]} 40. Nc4 {[%clk 0:00:44]}  Rxc2 {[%clk 0:00:07]} 41. Ne5+ {[%clk 0:00:36]}  Ke7 {[%clk 0:00:07]} 42. Ng6+ {[%clk 0:00:34]}  Kf7 {[%clk 0:00:06]} 43. Nf4 {[%clk 0:00:35]}  Ke7 {[%clk 0:00:04]} 44. Rb5 {[%clk 0:00:34]}  Rb2 {[%clk 0:00:03]} 45. Nxh5 {[%clk 0:00:31]}  Ne2+ {[%clk 0:00:03]} 46. Kh2 {[%clk 0:00:31]}  Nd4 {[%clk 0:00:03]} 47. Rxa5 {[%clk 0:00:26]}  Nxf3+ {[%clk 0:00:03]} 48. Kg3 {[%clk 0:00:26]}  Ne1 {[%clk 0:00:03]} 49. Rb5 {[%clk 0:00:26]}  Rxg2+ {[%clk 0:00:03]} 50. Kh3 {[%clk 0:00:25]}  Rg1 {[%clk 0:00:04]} 51. Ng3 {[%clk 0:00:24]}  Nf3 {[%clk 0:00:04]} 52. h5 {[%clk 0:00:23]}  Rb1 {[%clk 0:00:03]} 53. a5 {[%clk 0:00:23]}  Rb2 {[%clk 0:00:03]} 54. a6 {[%clk 0:00:22]}  Ra2 {[%clk 0:00:02]} 55. Rb6 {[%clk 0:00:21]}  Ne5 {[%clk 0:00:02]} 56. h6 {[%clk 0:00:20]}  Nd7 {[%clk 0:00:03]} 57. Rg6 {[%clk 0:00:19]}  Ne5 {[%clk 0:00:03]} 58. Nf5+ {[%clk 0:00:17]}  Kf7 {[%clk 0:00:03]} 59. Rb6 {[%clk 0:00:18]}  Nd7 {[%clk 0:00:03]} 60. h7 {[%clk 0:00:18]}  Nxb6 {[%clk 0:00:02]} 61. h8=Q {[%clk 0:00:18]}  Rxa6 {[%clk 0:00:03]} 62. Qh7+ {[%clk 0:00:16]}  Ke6 {[%clk 0:00:03]} 63. Qb7 {[%clk 0:00:17]}  Ra2 {[%clk 0:00:02]} 64. Nd4+ {[%clk 0:00:16]}  Ke5 {[%clk 0:00:01]} 65. Qxb6 {[%clk 0:00:17]}  Rd2 {[%clk 0:00:01]} 66. Qc5+ {[%clk 0:00:17]}  Ke4 {[%clk 0:00:01]} 67. Ne6 {[%clk 0:00:17]}  Rd3+ {[%clk 0:00:01]} 68. Kg4 {[%clk 0:00:18]}  Rxb3 {[%clk 0:00:01]} 69. Qc4+ {[%clk 0:00:18]}  Ke5 {[%clk 0:00:03]} 70. Qxb3 {[%clk 0:00:19]}  Ke4 {[%clk 0:00:01]} 71. Nf4 {[%clk 0:00:19]}  Ke5 {[%clk 0:00:01]} 72. Qe6+ {[%clk 0:00:20]}  Kd4 {[%clk 0:00:01]} 73. Qd5+ {[%clk 0:00:20]}  Ke3 {[%clk 0:00:02]} 74. Qd3+ {[%clk 0:00:21]}  Kf2 {[%clk 0:00:02]} 75. Qe2+ {[%clk 0:00:21]}  Kg1 {[%clk 0:00:03]} 76. Qg2# {[%clk 0:00:22]} 1-0


[Site "https://www.chess.com"]

[Event "Titled Tuesday Blitz July 27 2021"]
[White "Poormosavi, Seyed Kian"]
[Black "Araujo Sanchez, Josue"]
[WhiteFideId "12585807"]
[BlackFideId "6416896"]
[WhiteElo "2538"]
[BlackElo "2722"]
[Result "0-1"]
[Round "07"]
[TimeControl "180+1"]
[Date "2021.07.27"]
[WhiteClock "0:00:07"]
[BlackClock "0:01:29"]

1. e4 {[%clk 0:02:36]}  d5 {[%clk 0:02:58]} 2. exd5 {[%clk 0:02:27]}  Qxd5 {[%clk 0:02:59]} 3. Nf3 {[%clk 0:02:27]}  Qd6 {[%clk 0:03:00]} 4. Be2 {[%clk 0:02:26]}  Nf6 {[%clk 0:03:01]} 5. O-O {[%clk 0:02:26]}  g6 {[%clk 0:03:02]} 6. d4 {[%clk 0:02:26]}  Bg7 {[%clk 0:03:03]} 7. c4 {[%clk 0:02:27]}  O-O {[%clk 0:03:03]} 8. Nc3 {[%clk 0:02:27]}  c6 {[%clk 0:03:04]} 9. Be3 {[%clk 0:02:26]}  Bf5 {[%clk 0:03:03]} 10. Qb3 {[%clk 0:02:26]}  Nbd7 {[%clk 0:03:00]} 11. Rad1 {[%clk 0:02:13]}  Qc7 {[%clk 0:02:57]} 12. Rfe1 {[%clk 0:02:07]}  h6 {[%clk 0:02:43]} 13. d5 {[%clk 0:01:56]}  cxd5 {[%clk 0:02:35]} 14. cxd5 {[%clk 0:01:54]}  Ng4 {[%clk 0:02:22]} 15. Bd4 {[%clk 0:01:51]}  Nde5 {[%clk 0:02:22]} 16. g3 {[%clk 0:01:49]}  Rfd8 {[%clk 0:02:16]} 17. Nxe5 {[%clk 0:01:35]}  Nxe5 {[%clk 0:02:15]} 18. f4 {[%clk 0:01:28]}  Ng4 {[%clk 0:02:10]} 19. Bxg7 {[%clk 0:01:27]}  Kxg7 {[%clk 0:02:11]} 20. Qb4 {[%clk 0:01:27]}  e5 {[%clk 0:02:03]} 21. d6 {[%clk 0:01:18]}  Qc6 {[%clk 0:01:56]} 22. Bf1 {[%clk 0:00:33]}  a5 {[%clk 0:01:52]} 23. Qa3 {[%clk 0:00:19]}  Qb6+ {[%clk 0:01:50]} 24. Kh1 {[%clk 0:00:16]}  Nf2+ {[%clk 0:01:42]} 25. Kg2 {[%clk 0:00:16]}  Bh3+ {[%clk 0:01:42]} 26. Kf3 {[%clk 0:00:16]}  Bg4+ {[%clk 0:01:39]} 27. Kg2 {[%clk 0:00:16]}  exf4 {[%clk 0:01:32]} 28. Nd5 {[%clk 0:00:12]}  f3+ {[%clk 0:01:31]} 29. Qxf3 {[%clk 0:00:06]}  Bxf3+ {[%clk 0:01:29]} 30. Kxf3 {[%clk 0:00:07]}  Qc5 {[%clk 0:01:29]} 0-1


[Site "https://www.chess.com"]

[Event "Titled Tuesday Blitz July 27 2021"]
[White "Prydun, Andriy"]
[Black "Lodici, Lorenzo"]
[WhiteFideId "14145898"]
[BlackFideId "884189"]
[WhiteElo "2024"]
[BlackElo "2265"]
[Result "0-1"]
[Round "07"]
[TimeControl "180+1"]
[Date "2021.07.27"]
[WhiteClock "0:00:01"]
[BlackClock "0:00:43"]

1. d4 {[%clk 0:03:00]}  Nf6 {[%clk 0:02:54]} 2. Nc3 {[%clk 0:03:01]}  d5 {[%clk 0:02:53]} 3. Bf4 {[%clk 0:03:01]}  a6 {[%clk 0:02:52]} 4. e3 {[%clk 0:03:02]}  b5 {[%clk 0:02:53]} 5. Bd3 {[%clk 0:02:53]}  e6 {[%clk 0:02:33]} 6. g4 {[%clk 0:02:52]}  c5 {[%clk 0:02:32]} 7. g5 {[%clk 0:02:51]}  Nfd7 {[%clk 0:02:30]} 8. h4 {[%clk 0:02:44]}  Nc6 {[%clk 0:02:28]} 9. h5 {[%clk 0:02:22]}  c4 {[%clk 0:02:00]} 10. Be2 {[%clk 0:02:20]}  Nb6 {[%clk 0:01:58]} 11. Bf3 {[%clk 0:02:15]}  Bd6 {[%clk 0:01:58]} 12. Nce2 {[%clk 0:02:14]}  Bxf4 {[%clk 0:01:57]} 13. exf4 {[%clk 0:02:13]}  Qd6 {[%clk 0:01:53]} 14. Qd2 {[%clk 0:01:56]}  b4 {[%clk 0:01:51]} 15. a3 {[%clk 0:01:40]}  c3 {[%clk 0:01:41]} 16. bxc3 {[%clk 0:01:36]}  Nc4 {[%clk 0:01:40]} 17. Qd3 {[%clk 0:01:34]}  bxa3 {[%clk 0:01:39]} 18. g6 {[%clk 0:01:33]}  f5 {[%clk 0:01:32]} 19. h6 {[%clk 0:01:29]}  hxg6 {[%clk 0:01:32]} 20. hxg7 {[%clk 0:01:29]}  Rg8 {[%clk 0:01:33]} 21. Rh7 {[%clk 0:00:58]}  Ra7 {[%clk 0:01:28]} 22. Nh3 {[%clk 0:00:52]}  Raxg7 {[%clk 0:01:26]} 23. Rh4 {[%clk 0:00:43]}  Bd7 {[%clk 0:01:23]} 24. Ng5 {[%clk 0:00:40]}  Ke7 {[%clk 0:01:17]} 25. Nc1 {[%clk 0:00:27]}  N6a5 {[%clk 0:00:55]} 26. Qe2 {[%clk 0:00:27]}  Bb5 {[%clk 0:00:55]} 27. Nd3 {[%clk 0:00:26]}  Nb2 {[%clk 0:00:54]} 28. Ra2 {[%clk 0:00:03]}  Bc4 {[%clk 0:00:45]} 29. Rxb2 {[%clk 0:00:02]}  axb2 {[%clk 0:00:45]} 30. Qd1 {[%clk 0:00:02]}  Bxd3 {[%clk 0:00:44]} 31. cxd3 {[%clk 0:00:01]}  Qa3 {[%clk 0:00:44]} 32. Kd2 {[%clk 0:00:01]}  Qa2 {[%clk 0:00:43]} 0-1


[Site "https://www.chess.com"]

[Event "Titled Tuesday Blitz July 27 2021"]
[White "Radu, David Cr."]
[Black "Piesik, Piotr"]
[WhiteFideId "1265717"]
[BlackFideId "1136194"]
[WhiteElo "1661"]
[BlackElo "2354"]
[Result "0-1"]
[Round "07"]
[TimeControl "180+1"]
[Date "2021.07.27"]
[WhiteClock "0:00:34"]
[BlackClock "0:00:58"]

1. d4 {[%clk 0:03:00]}  c5 {[%clk 0:02:58]} 2. c3 {[%clk 0:02:57]}  Nf6 {[%clk 0:02:57]} 3. Bf4 {[%clk 0:02:57]}  d5 {[%clk 0:02:54]} 4. Nf3 {[%clk 0:02:56]}  Bf5 {[%clk 0:02:53]} 5. e3 {[%clk 0:02:56]}  Nbd7 {[%clk 0:02:53]} 6. Bd3 {[%clk 0:02:56]}  Bxd3 {[%clk 0:02:53]} 7. Qxd3 {[%clk 0:02:57]}  e6 {[%clk 0:02:54]} 8. O-O {[%clk 0:02:56]}  Qb6 {[%clk 0:02:54]} 9. Nbd2 {[%clk 0:02:55]}  Be7 {[%clk 0:02:50]} 10. Rab1 {[%clk 0:02:51]}  O-O {[%clk 0:02:49]} 11. Ne5 {[%clk 0:02:51]}  Nxe5 {[%clk 0:02:49]} 12. Bxe5 {[%clk 0:02:52]}  Nd7 {[%clk 0:02:49]} 13. Bg3 {[%clk 0:02:51]}  f5 {[%clk 0:02:49]} 14. c4 {[%clk 0:02:48]}  cxd4 {[%clk 0:02:42]} 15. cxd5 {[%clk 0:02:41]}  e5 {[%clk 0:02:40]} 16. Nc4 {[%clk 0:02:36]}  Qf6 {[%clk 0:02:39]} 17. f4 {[%clk 0:02:32]}  Nc5 {[%clk 0:02:31]} 18. fxe5 {[%clk 0:02:25]}  Nxd3 {[%clk 0:02:30]} 19. exf6 {[%clk 0:02:25]}  Bxf6 {[%clk 0:02:31]} 20. Rfd1 {[%clk 0:02:25]}  Nb4 {[%clk 0:02:28]} 21. exd4 {[%clk 0:02:24]}  Nxd5 {[%clk 0:02:26]} 22. Be5 {[%clk 0:02:18]}  Rac8 {[%clk 0:02:23]} 23. b3 {[%clk 0:02:15]}  Nc3 {[%clk 0:02:21]} 24. Rbc1 {[%clk 0:02:13]}  Nxd1 {[%clk 0:02:20]} 25. Rxd1 {[%clk 0:02:13]}  Rcd8 {[%clk 0:02:15]} 26. Re1 {[%clk 0:02:08]}  Rfe8 {[%clk 0:02:13]} 27. Kf2 {[%clk 0:02:06]}  Bxe5 {[%clk 0:02:11]} 28. dxe5 {[%clk 0:02:06]}  Rd5 {[%clk 0:02:04]} 29. a4 {[%clk 0:02:02]}  a6 {[%clk 0:01:59]} 30. a5 {[%clk 0:02:02]}  Re6 {[%clk 0:01:58]} 31. Re3 {[%clk 0:02:01]}  g6 {[%clk 0:01:53]} 32. g3 {[%clk 0:02:00]}  Kf7 {[%clk 0:01:53]} 33. Kf3 {[%clk 0:02:00]}  Ke7 {[%clk 0:01:51]} 34. Rc3 {[%clk 0:01:54]}  Rc6 {[%clk 0:01:50]} 35. Re3 {[%clk 0:01:50]}  Ke6 {[%clk 0:01:49]} 36. h4 {[%clk 0:01:42]}  h6 {[%clk 0:01:49]} 37. g4 {[%clk 0:01:41]}  fxg4+ {[%clk 0:01:47]} 38. Kxg4 {[%clk 0:01:42]}  Rxc4+ {[%clk 0:01:39]} 39. bxc4 {[%clk 0:01:42]}  Rxa5 {[%clk 0:01:40]} 40. Rb3 {[%clk 0:01:38]}  b5 {[%clk 0:01:35]} 41. cxb5 {[%clk 0:01:39]}  Rxb5 {[%clk 0:01:35]} 42. Rc3 {[%clk 0:01:34]}  Rb4+ {[%clk 0:01:26]} 43. Kg3 {[%clk 0:01:33]}  Rb6 {[%clk 0:01:26]} 44. Kf4 {[%clk 0:01:30]}  a5 {[%clk 0:01:24]} 45. Rc5 {[%clk 0:01:24]}  Ra6 {[%clk 0:01:20]} 46. Rc3 {[%clk 0:01:17]}  a4 {[%clk 0:01:19]} 47. Ra3 {[%clk 0:01:17]}  Ra5 {[%clk 0:01:13]} 48. Kg4 {[%clk 0:01:08]}  Kxe5 {[%clk 0:01:12]} 49. Kf3 {[%clk 0:01:06]}  Kd4 {[%clk 0:01:11]} 50. Ra1 {[%clk 0:01:02]}  a3 {[%clk 0:01:11]} 51. Rd1+ {[%clk 0:01:02]}  Kc3 {[%clk 0:01:11]} 52. Rd8 {[%clk 0:01:00]}  a2 {[%clk 0:01:10]} 53. Rc8+ {[%clk 0:01:00]}  Kb2 {[%clk 0:01:10]} 54. Rb8+ {[%clk 0:00:59]}  Ka3 {[%clk 0:01:10]} 55. Rg8 {[%clk 0:00:50]}  a1=Q {[%clk 0:01:09]} 56. Rxg6 {[%clk 0:00:51]}  Rf5+ {[%clk 0:01:09]} 57. Kg4 {[%clk 0:00:51]}  Qf1 {[%clk 0:00:59]} 58. Ra6+ {[%clk 0:00:45]}  Kb4 {[%clk 0:00:59]} 59. Rb6+ {[%clk 0:00:41]}  Kc5 {[%clk 0:00:59]} 60. Rxh6 {[%clk 0:00:34]}  Qf3# {[%clk 0:00:58]} 0-1


[Site "https://www.chess.com"]

[Event "Titled Tuesday Blitz July 27 2021"]
[White "Rustemov, Alexander"]
[Black "De Silva, L M S T"]
[WhiteFideId "4119002"]
[BlackFideId "9953698"]
[WhiteElo "2798"]
[BlackElo "1621"]
[Result "1-0"]
[Round "07"]
[TimeControl "180+1"]
[Date "2021.07.27"]
[WhiteClock "0:01:25"]
[BlackClock "0:01:21"]

1. d4 {[%clk 0:03:00]}  Nf6 {[%clk 0:02:59]} 2. c4 {[%clk 0:03:00]}  e6 {[%clk 0:03:00]} 3. Nf3 {[%clk 0:02:59]}  b6 {[%clk 0:03:00]} 4. g3 {[%clk 0:02:58]}  Bb7 {[%clk 0:03:01]} 5. Bg2 {[%clk 0:02:57]}  g6 {[%clk 0:03:02]} 6. O-O {[%clk 0:02:55]}  Bg7 {[%clk 0:03:01]} 7. Bf4 {[%clk 0:02:53]}  O-O {[%clk 0:03:01]} 8. Nc3 {[%clk 0:02:52]}  Ne4 {[%clk 0:03:01]} 9. Nb5 {[%clk 0:02:52]}  d6 {[%clk 0:02:56]} 10. Ng5 {[%clk 0:02:47]}  Nxg5 {[%clk 0:02:38]} 11. Bxb7 {[%clk 0:02:41]}  Nh3+ {[%clk 0:02:36]} 12. Kg2 {[%clk 0:02:38]}  Nxf4+ {[%clk 0:02:35]} 13. gxf4 {[%clk 0:02:38]}  Nd7 {[%clk 0:02:27]} 14. Bxa8 {[%clk 0:02:37]}  Qxa8+ {[%clk 0:02:28]} 15. f3 {[%clk 0:02:34]}  Qb7 {[%clk 0:02:24]} 16. e3 {[%clk 0:02:31]}  a6 {[%clk 0:02:22]} 17. Nc3 {[%clk 0:02:31]}  Qc6 {[%clk 0:02:12]} 18. Qe2 {[%clk 0:02:29]}  Nf6 {[%clk 0:02:08]} 19. Rac1 {[%clk 0:02:26]}  Qd7 {[%clk 0:02:08]} 20. Ne4 {[%clk 0:02:25]}  Nh5 {[%clk 0:02:03]} 21. Rfd1 {[%clk 0:02:19]}  Qe7 {[%clk 0:02:01]} 22. Ng3 {[%clk 0:02:17]}  Nf6 {[%clk 0:01:57]} 23. c5 {[%clk 0:02:16]}  b5 {[%clk 0:01:54]} 24. cxd6 {[%clk 0:02:16]}  cxd6 {[%clk 0:01:55]} 25. Rc6 {[%clk 0:02:08]}  e5 {[%clk 0:01:49]} 26. fxe5 {[%clk 0:02:05]}  dxe5 {[%clk 0:01:50]} 27. d5 {[%clk 0:02:02]}  h5 {[%clk 0:01:45]} 28. Ne4 {[%clk 0:01:48]}  Nxe4 {[%clk 0:01:39]} 29. fxe4 {[%clk 0:01:48]}  f5 {[%clk 0:01:40]} 30. Rxg6 {[%clk 0:01:45]}  fxe4 {[%clk 0:01:38]} 31. Kh1 {[%clk 0:01:35]}  Qh4 {[%clk 0:01:24]} 32. Qg2 {[%clk 0:01:28]}  Rf7 {[%clk 0:01:20]} 33. Rg1 {[%clk 0:01:26]}  Qe7 {[%clk 0:01:20]} 34. d6 {[%clk 0:01:26]}  Qd7 {[%clk 0:01:20]} 35. Rxg7+ {[%clk 0:01:25]}  Rxg7 {[%clk 0:01:21]} 36. Qxg7+ {[%clk 0:01:25]} 1-0


[Site "https://www.chess.com"]

[Event "Titled Tuesday Blitz July 27 2021"]
[White "Samadov, Read"]
[Black "Elgersma, Onno"]
[WhiteFideId "13417444"]
[BlackFideId "1053531"]
[WhiteElo "2084"]
[BlackElo "2466"]
[Result "1-0"]
[Round "07"]
[TimeControl "180+1"]
[Date "2021.07.27"]
[WhiteClock "0:02:19"]
[BlackClock "0:00:44"]

1. d4 {[%clk 0:03:00]}  d5 {[%clk 0:02:59]} 2. c4 {[%clk 0:03:00]}  e6 {[%clk 0:03:00]} 3. Nf3 {[%clk 0:02:59]}  Nf6 {[%clk 0:03:00]} 4. Nc3 {[%clk 0:02:58]}  a6 {[%clk 0:03:00]} 5. cxd5 {[%clk 0:02:58]}  exd5 {[%clk 0:03:01]} 6. Bg5 {[%clk 0:02:58]}  Be6 {[%clk 0:03:02]} 7. Qb3 {[%clk 0:02:58]}  b5 {[%clk 0:03:01]} 8. Rc1 {[%clk 0:02:41]}  c6 {[%clk 0:02:45]} 9. e3 {[%clk 0:02:39]}  Bd6 {[%clk 0:02:33]} 10. a3 {[%clk 0:02:39]}  O-O {[%clk 0:02:33]} 11. Be2 {[%clk 0:02:39]}  Nbd7 {[%clk 0:02:33]} 12. Na2 {[%clk 0:02:38]}  c5 {[%clk 0:02:32]} 13. dxc5 {[%clk 0:02:34]}  Nxc5 {[%clk 0:02:29]} 14. Qd1 {[%clk 0:02:30]}  d4 {[%clk 0:02:15]} 15. Nb4 {[%clk 0:02:26]}  dxe3 {[%clk 0:02:06]} 16. Bxe3 {[%clk 0:02:27]}  Nb3 {[%clk 0:02:06]} 17. Rc6 {[%clk 0:02:24]}  Bxb4+ {[%clk 0:01:06]} 18. axb4 {[%clk 0:02:23]}  Qxd1+ {[%clk 0:00:58]} 19. Bxd1 {[%clk 0:02:22]}  Rac8 {[%clk 0:00:52]} 20. Rxe6 {[%clk 0:02:19]}  fxe6 {[%clk 0:00:44]} 21. Bxb3 {[%clk 0:02:19]} 1-0


[Site "https://www.chess.com"]